[Event "Titled Tuesday Blitz March 14 Late 2023"]
[White "Kurtz, Eric M"]
[Black "Szente Varga, Fruzsina"]
[WhiteFideId "30939763"]
[BlackFideId "712264"]
[WhiteElo "2580"]
[BlackElo "1994"]
[Result "0-1"]
[Round "06"]
[TimeControl "180+2"]
[Date "2023.03.14"]
[WhiteClock "0:00:17"]
[BlackClock "0:00:14"]

1. Nf3 {[%clk 0:02:57]}  Nf6 {[%clk 0:03:00]} 2. c4 {[%clk 0:02:56]}  c6 {[%clk 0:02:59]} 3. g3 {[%clk 0:02:56]}  d5 {[%clk 0:03:00]} 4. Bg2 {[%clk 0:02:57]}  g6 {[%clk 0:03:00]} 5. b3 {[%clk 0:02:57]}  Bg7 {[%clk 0:03:01]} 6. Bb2 {[%clk 0:02:58]}  O-O {[%clk 0:03:01]} 7. O-O {[%clk 0:02:58]}  a5 {[%clk 0:02:56]} 8. Nc3 {[%clk 0:02:57]}  Re8 {[%clk 0:02:49]} 9. d4 {[%clk 0:02:56]}  Nbd7 {[%clk 0:02:45]} 10. cxd5 {[%clk 0:02:52]}  cxd5 {[%clk 0:02:44]} 11. Ne5 {[%clk 0:02:53]}  Nb6 {[%clk 0:02:41]} 12. a4 {[%clk 0:02:41]}  Bf5 {[%clk 0:02:36]} 13. Rc1 {[%clk 0:02:40]}  Rc8 {[%clk 0:02:35]} 14. Ba3 {[%clk 0:02:20]}  Ne4 {[%clk 0:02:14]} 15. Nb5 {[%clk 0:02:18]}  Nd7 {[%clk 0:01:37]} 16. Rxc8 {[%clk 0:02:12]}  Qxc8 {[%clk 0:01:36]} 17. f3 {[%clk 0:02:12]}  Nef6 {[%clk 0:01:33]} 18. Qd2 {[%clk 0:02:06]}  Qc2 {[%clk 0:01:27]} 19. Qxc2 {[%clk 0:01:43]}  Bxc2 {[%clk 0:01:28]} 20. Nxd7 {[%clk 0:01:35]}  Nxd7 {[%clk 0:01:28]} 21. Nc7 {[%clk 0:01:31]}  Bxd4+ {[%clk 0:01:22]} 22. Kh1 {[%clk 0:01:32]}  Rb8 {[%clk 0:00:55]} 23. Nxd5 {[%clk 0:01:29]}  e6 {[%clk 0:00:52]} 24. Ne7+ {[%clk 0:01:20]}  Kg7 {[%clk 0:00:52]} 25. Rc1 {[%clk 0:01:07]}  Bxb3 {[%clk 0:00:50]} 26. Rc7 {[%clk 0:01:03]}  Bxa4 {[%clk 0:00:49]} 27. Bd6 {[%clk 0:00:56]}  Bf6 {[%clk 0:00:34]} 28. e4 {[%clk 0:00:45]}  Re8 {[%clk 0:00:31]} 29. Nc8 {[%clk 0:00:41]}  b5 {[%clk 0:00:24]} 30. f4 {[%clk 0:00:41]}  Bd4 {[%clk 0:00:21]} 31. Na7 {[%clk 0:00:33]}  Nb6 {[%clk 0:00:21]} 32. e5 {[%clk 0:00:30]}  b4 {[%clk 0:00:19]} 33. Nc6 {[%clk 0:00:30]}  Bxc6 {[%clk 0:00:18]} 34. Bxc6 {[%clk 0:00:31]}  Rc8 {[%clk 0:00:18]} 35. Rxc8 {[%clk 0:00:30]}  Nxc8 {[%clk 0:00:19]} 36. Bc7 {[%clk 0:00:28]}  Bb6 {[%clk 0:00:17]} 37. Bb8 {[%clk 0:00:28]}  Kf8 {[%clk 0:00:17]} 38. Bd7 {[%clk 0:00:28]}  Na7 {[%clk 0:00:16]} 39. Bd6+ {[%clk 0:00:28]}  Kg7 {[%clk 0:00:16]} 40. Kg2 {[%clk 0:00:28]}  b3 {[%clk 0:00:16]} 41. Ba3 {[%clk 0:00:27]}  Bd4 {[%clk 0:00:15]} 42. Ba4 {[%clk 0:00:24]}  b2 {[%clk 0:00:15]} 43. Bc2 {[%clk 0:00:24]}  Nb5 {[%clk 0:00:14]} 44. Be7 {[%clk 0:00:23]}  Nc3 {[%clk 0:00:14]} 45. Bd8 {[%clk 0:00:21]}  a4 {[%clk 0:00:14]} 46. Be7 {[%clk 0:00:22]}  Ne2 {[%clk 0:00:12]} 47. Kf3 {[%clk 0:00:19]}  Nc3 {[%clk 0:00:12]} 48. Bb4 {[%clk 0:00:16]}  b1=Q {[%clk 0:00:12]} 49. Bxb1 {[%clk 0:00:17]}  Nxb1 {[%clk 0:00:12]} 50. Ke2 {[%clk 0:00:17]}  a3 {[%clk 0:00:13]} 51. Bxa3 {[%clk 0:00:17]}  Nxa3 {[%clk 0:00:14]} 0-1


[Site "https://www.chess.com"]

[Event "Titled Tuesday Blitz March 14 Late 2023"]
[White "Mickiewicz, Piotr"]
[Black "Mendez Fortes, Eduardo Jesus"]
[WhiteFideId "1114891"]
[BlackFideId "3502376"]
[WhiteElo "2246"]
[BlackElo "2307"]
[Result "0-1"]
[Round "06"]
[TimeControl "180+2"]
[Date "2023.03.14"]
[WhiteClock "0:00:05"]
[BlackClock "0:01:18"]

1. Nf3 {[%clk 0:02:59]}  d5 {[%clk 0:02:59]} 2. g3 {[%clk 0:02:58]}  Nf6 {[%clk 0:02:58]} 3. Bg2 {[%clk 0:02:59]}  e6 {[%clk 0:02:57]} 4. O-O {[%clk 0:03:00]}  c5 {[%clk 0:02:56]} 5. d3 {[%clk 0:03:00]}  Be7 {[%clk 0:02:56]} 6. Nbd2 {[%clk 0:02:58]}  Nc6 {[%clk 0:02:56]} 7. e4 {[%clk 0:02:58]}  O-O {[%clk 0:02:56]} 8. Re1 {[%clk 0:02:56]}  b5 {[%clk 0:02:54]} 9. a4 {[%clk 0:02:54]}  bxa4 {[%clk 0:02:53]} 10. e5 {[%clk 0:02:47]}  Nd7 {[%clk 0:02:53]} 11. Rxa4 {[%clk 0:02:48]}  Nb6 {[%clk 0:02:47]} 12. Ra1 {[%clk 0:02:48]}  Qc7 {[%clk 0:02:44]} 13. Nf1 {[%clk 0:02:47]}  a5 {[%clk 0:02:44]} 14. h4 {[%clk 0:02:46]}  d4 {[%clk 0:02:44]} 15. Bg5 {[%clk 0:02:43]}  h6 {[%clk 0:02:41]} 16. Bxe7 {[%clk 0:02:41]}  Nxe7 {[%clk 0:02:41]} 17. N1d2 {[%clk 0:02:42]}  Bb7 {[%clk 0:02:41]} 18. Ne4 {[%clk 0:02:40]}  c4 {[%clk 0:02:36]} 19. Nd6 {[%clk 0:02:19]}  cxd3 {[%clk 0:02:23]} 20. cxd3 {[%clk 0:01:55]}  Bxf3 {[%clk 0:02:21]} 21. Bxf3 {[%clk 0:01:54]}  Nbd5 {[%clk 0:02:20]} 22. Qd2 {[%clk 0:01:49]}  Qb6 {[%clk 0:02:17]} 23. Nc4 {[%clk 0:01:45]}  Qb4 {[%clk 0:02:13]} 24. Qe2 {[%clk 0:01:01]}  Rfb8 {[%clk 0:02:06]} 25. Ra3 {[%clk 0:01:00]}  Ra7 {[%clk 0:02:01]} 26. Rea1 {[%clk 0:01:00]}  Rb5 {[%clk 0:01:58]} 27. Be4 {[%clk 0:01:00]}  Nb6 {[%clk 0:01:50]} 28. Nd6 {[%clk 0:00:58]}  Rxe5 {[%clk 0:01:42]} 29. f4 {[%clk 0:00:29]}  Rc5 {[%clk 0:01:35]} 30. Nb7 {[%clk 0:00:29]}  Rc7 {[%clk 0:01:28]} 31. Nxa5 {[%clk 0:00:26]}  Nbd5 {[%clk 0:01:25]} 32. Bxd5 {[%clk 0:00:23]}  Nxd5 {[%clk 0:01:24]} 33. Nc6 {[%clk 0:00:23]}  Rxa3 {[%clk 0:01:21]} 34. bxa3 {[%clk 0:00:20]}  Qc3 {[%clk 0:01:20]} 35. Rf1 {[%clk 0:00:05]}  Qxc6 {[%clk 0:01:18]} 0-1


[Site "https://www.chess.com"]

[Event "Titled Tuesday Blitz March 14 Late 2023"]
[White "Zampronha, Wladimir Camilo"]
[Black "Johannesson, Ingvar Thor"]
[WhiteFideId "2103087"]
[BlackFideId "2301490"]
[WhiteElo "2176"]
[BlackElo "2360"]
[Result "0-1"]
[Round "06"]
[TimeControl "180+2"]
[Date "2023.03.14"]
[WhiteClock "0:00:06"]
[BlackClock "0:00:22"]

1. e4 {[%clk 0:03:00]}  e6 {[%clk 0:02:54]} 2. d4 {[%clk 0:03:00]}  d5 {[%clk 0:02:13]} 3. Nc3 {[%clk 0:03:00]}  Bb4 {[%clk 0:02:12]} 4. e5 {[%clk 0:03:00]}  Qd7 {[%clk 0:02:13]} 5. f4 {[%clk 0:02:45]}  b6 {[%clk 0:02:01]} 6. Nf3 {[%clk 0:02:42]}  Ba6 {[%clk 0:01:55]} 7. Bxa6 {[%clk 0:02:41]}  Nxa6 {[%clk 0:01:51]} 8. O-O {[%clk 0:02:42]}  Nh6 {[%clk 0:01:35]} 9. Kh1 {[%clk 0:02:38]}  Bxc3 {[%clk 0:01:36]} 10. bxc3 {[%clk 0:02:37]}  Nb8 {[%clk 0:01:35]} 11. a4 {[%clk 0:02:33]}  Nc6 {[%clk 0:01:35]} 12. Qe2 {[%clk 0:02:25]}  Na5 {[%clk 0:01:35]} 13. Be3 {[%clk 0:02:23]}  Nc4 {[%clk 0:01:34]} 14. Bf2 {[%clk 0:02:21]}  a5 {[%clk 0:01:34]} 15. Nd2 {[%clk 0:02:20]}  Qc6 {[%clk 0:01:32]} 16. Nxc4 {[%clk 0:02:20]}  dxc4 {[%clk 0:01:33]} 17. h3 {[%clk 0:02:12]}  Nf5 {[%clk 0:01:31]} 18. Kh2 {[%clk 0:02:09]}  h5 {[%clk 0:01:31]} 19. Bg1 {[%clk 0:01:49]}  h4 {[%clk 0:01:30]} 20. Qf3 {[%clk 0:01:50]}  Qxf3 {[%clk 0:01:21]} 21. Rxf3 {[%clk 0:01:50]}  O-O-O {[%clk 0:01:22]} 22. Be3 {[%clk 0:01:43]}  Kb7 {[%clk 0:01:22]} 23. Bd2 {[%clk 0:01:43]}  Kc6 {[%clk 0:01:22]} 24. Rb1 {[%clk 0:01:42]}  Rb8 {[%clk 0:01:23]} 25. Rff1 {[%clk 0:01:41]}  Rb7 {[%clk 0:01:21]} 26. Rb5 {[%clk 0:01:37]}  Rd8 {[%clk 0:01:21]} 27. Rfb1 {[%clk 0:01:32]}  Rd5 {[%clk 0:01:21]} 28. Kg1 {[%clk 0:01:29]}  Rxb5 {[%clk 0:01:18]} 29. Rxb5 {[%clk 0:01:26]}  Kd7 {[%clk 0:01:18]} 30. Kf2 {[%clk 0:01:18]}  c6 {[%clk 0:01:18]} 31. Rb1 {[%clk 0:01:17]}  b5 {[%clk 0:01:18]} 32. Kf3 {[%clk 0:01:14]}  Kc7 {[%clk 0:01:12]} 33. Ra1 {[%clk 0:01:11]}  b4 {[%clk 0:01:10]} 34. Rb1 {[%clk 0:01:05]}  c5 {[%clk 0:00:57]} 35. dxc5 {[%clk 0:00:58]}  b3 {[%clk 0:00:57]} 36. cxb3 {[%clk 0:00:54]}  Rxb3 {[%clk 0:00:54]} 37. Rd1 {[%clk 0:00:22]}  Kc6 {[%clk 0:00:54]} 38. Ke4 {[%clk 0:00:20]}  Rb2 {[%clk 0:00:42]} 39. Bc1 {[%clk 0:00:13]}  Rxg2 {[%clk 0:00:40]} 40. Rd8 {[%clk 0:00:13]}  Rg3 {[%clk 0:00:34]} 41. Rc8+ {[%clk 0:00:14]}  Kd7 {[%clk 0:00:31]} 42. Rf8 {[%clk 0:00:14]}  Rxc3 {[%clk 0:00:30]} 43. Bd2 {[%clk 0:00:09]}  Rd3 {[%clk 0:00:23]} 44. Bc1 {[%clk 0:00:06]}  Ng3# {[%clk 0:00:22]} 0-1


[Site "https://www.chess.com"]

[Event "Titled Tuesday Blitz March 14 Late 2023"]
[White "Urbina Perez, Juan Antonio"]
[Black "Gallegos Diaz, Carlos Alberto"]
[WhiteFideId "2217368"]
[BlackFideId "3900886"]
[WhiteElo "2197"]
[BlackElo "2362"]
[Result "1-0"]
[Round "06"]
[TimeControl "180+2"]
[Date "2023.03.14"]
[WhiteClock "0:00:18"]
[BlackClock "0:00:16"]

1. c4 {[%clk 0:02:54]}  d6 {[%clk 0:03:00]} 2. g3 {[%clk 0:02:54]}  Nf6 {[%clk 0:03:00]} 3. Bg2 {[%clk 0:02:54]}  e5 {[%clk 0:03:00]} 4. Nc3 {[%clk 0:02:49]}  Be7 {[%clk 0:03:00]} 5. d3 {[%clk 0:02:49]}  O-O {[%clk 0:03:00]} 6. Nf3 {[%clk 0:02:50]}  h6 {[%clk 0:03:00]} 7. O-O {[%clk 0:02:50]}  c6 {[%clk 0:03:01]} 8. b4 {[%clk 0:02:50]}  Nbd7 {[%clk 0:03:00]} 9. a4 {[%clk 0:02:50]}  d5 {[%clk 0:03:00]} 10. cxd5 {[%clk 0:02:42]}  cxd5 {[%clk 0:03:01]} 11. d4 {[%clk 0:02:42]}  e4 {[%clk 0:02:57]} 12. Ne5 {[%clk 0:02:42]}  Bxb4 {[%clk 0:02:55]} 13. Qb3 {[%clk 0:02:39]}  Qa5 {[%clk 0:02:40]} 14. Na2 {[%clk 0:02:22]}  Bd6 {[%clk 0:02:36]} 15. Bb2 {[%clk 0:02:22]}  Nb6 {[%clk 0:02:20]} 16. Nc3 {[%clk 0:02:02]}  Be6 {[%clk 0:01:59]} 17. Nb5 {[%clk 0:01:58]}  Bb8 {[%clk 0:01:27]} 18. Bc3 {[%clk 0:01:47]}  Qa6 {[%clk 0:01:26]} 19. Rfc1 {[%clk 0:01:43]}  Nc4 {[%clk 0:01:24]} 20. Bf1 {[%clk 0:01:40]}  Bxe5 {[%clk 0:01:14]} 21. dxe5 {[%clk 0:01:41]}  Ne8 {[%clk 0:01:03]} 22. e3 {[%clk 0:01:37]}  Qc6 {[%clk 0:00:56]} 23. Bd4 {[%clk 0:01:34]}  a6 {[%clk 0:00:52]} 24. Na3 {[%clk 0:01:32]}  Rc8 {[%clk 0:00:46]} 25. Nxc4 {[%clk 0:01:27]}  dxc4 {[%clk 0:00:45]} 26. Qb4 {[%clk 0:01:21]}  b5 {[%clk 0:00:39]} 27. axb5 {[%clk 0:01:20]}  axb5 {[%clk 0:00:40]} 28. Ra5 {[%clk 0:01:12]}  Nc7 {[%clk 0:00:39]} 29. Bc5 {[%clk 0:00:54]}  Nd5 {[%clk 0:00:38]} 30. Qxb5 {[%clk 0:00:54]}  Qxb5 {[%clk 0:00:23]} 31. Rxb5 {[%clk 0:00:55]}  Rfd8 {[%clk 0:00:20]} 32. Bd4 {[%clk 0:00:54]}  c3 {[%clk 0:00:20]} 33. Be2 {[%clk 0:00:43]}  Rc6 {[%clk 0:00:18]} 34. Ra5 {[%clk 0:00:27]}  Rb8 {[%clk 0:00:17]} 35. Kg2 {[%clk 0:00:21]}  Rb2 {[%clk 0:00:17]} 36. Bf1 {[%clk 0:00:18]}  c2 {[%clk 0:00:16]} 37. Bxb2 {[%clk 0:00:18]} 1-0


[Site "https://www.chess.com"]

[Event "Titled Tuesday Blitz March 14 Late 2023"]
[White "Petukhov, Dmitry"]
[Black "Todev, Simeon"]
[WhiteFideId "4142748"]
[BlackFideId "2925133"]
[WhiteElo "2311"]
[BlackElo "1938"]
[Result "1-0"]
[Round "06"]
[TimeControl "180+2"]
[Date "2023.03.14"]
[WhiteClock "0:01:05"]
[BlackClock "0:00:17"]

1. e4 {[%clk 0:03:00]}  c5 {[%clk 0:02:47]} 2. c3 {[%clk 0:02:59]}  d5 {[%clk 0:02:47]} 3. exd5 {[%clk 0:03:00]}  Qxd5 {[%clk 0:02:47]} 4. d4 {[%clk 0:03:00]}  cxd4 {[%clk 0:02:48]} 5. Nf3 {[%clk 0:03:01]}  Bg4 {[%clk 0:02:47]} 6. Be2 {[%clk 0:03:00]}  Nc6 {[%clk 0:02:47]} 7. cxd4 {[%clk 0:02:59]}  e6 {[%clk 0:02:47]} 8. O-O {[%clk 0:03:00]}  Bb4 {[%clk 0:02:45]} 9. h3 {[%clk 0:02:59]}  Bh5 {[%clk 0:02:37]} 10. a3 {[%clk 0:02:59]}  Ba5 {[%clk 0:02:37]} 11. b4 {[%clk 0:03:00]}  Bb6 {[%clk 0:02:37]} 12. Nc3 {[%clk 0:03:00]}  Qd7 {[%clk 0:02:37]} 13. d5 {[%clk 0:03:01]}  exd5 {[%clk 0:02:35]} 14. Qxd5 {[%clk 0:03:02]}  Nf6 {[%clk 0:02:32]} 15. Qxd7+ {[%clk 0:03:00]}  Nxd7 {[%clk 0:02:32]} 16. Nd5 {[%clk 0:02:45]}  O-O {[%clk 0:02:23]} 17. Rd1 {[%clk 0:02:40]}  Rfe8 {[%clk 0:02:08]} 18. Nxb6 {[%clk 0:02:35]}  Nxb6 {[%clk 0:01:57]} 19. Be3 {[%clk 0:02:35]}  Ne5 {[%clk 0:01:51]} 20. g4 {[%clk 0:02:31]}  Bg6 {[%clk 0:01:50]} 21. Nxe5 {[%clk 0:02:27]}  Rxe5 {[%clk 0:01:51]} 22. Rac1 {[%clk 0:02:15]}  Rae8 {[%clk 0:01:44]} 23. Bf3 {[%clk 0:02:08]}  R5e7 {[%clk 0:01:27]} 24. Bxb6 {[%clk 0:02:03]}  axb6 {[%clk 0:01:26]} 25. Rd6 {[%clk 0:02:02]}  f5 {[%clk 0:01:23]} 26. Rxb6 {[%clk 0:01:55]}  fxg4 {[%clk 0:01:22]} 27. hxg4 {[%clk 0:01:55]}  Ra8 {[%clk 0:01:18]} 28. Rc3 {[%clk 0:01:49]}  Ra7 {[%clk 0:01:10]} 29. Bd5+ {[%clk 0:01:47]}  Kf8 {[%clk 0:01:04]} 30. Rc8+ {[%clk 0:01:45]}  Re8 {[%clk 0:00:59]} 31. Rc7 {[%clk 0:01:43]}  Re7 {[%clk 0:00:58]} 32. Rxe7 {[%clk 0:01:42]}  Kxe7 {[%clk 0:00:55]} 33. Rxb7+ {[%clk 0:01:43]}  Rxb7 {[%clk 0:00:56]} 34. Bxb7 {[%clk 0:01:43]}  Kd6 {[%clk 0:00:57]} 35. Kf1 {[%clk 0:01:37]}  Bd3+ {[%clk 0:00:54]} 36. Ke1 {[%clk 0:01:35]}  g6 {[%clk 0:00:53]} 37. Kd2 {[%clk 0:01:34]}  Bb5 {[%clk 0:00:39]} 38. Ke3 {[%clk 0:01:34]}  Ke5 {[%clk 0:00:36]} 39. f4+ {[%clk 0:01:33]}  Kd6 {[%clk 0:00:36]} 40. g5 {[%clk 0:01:33]}  Ke6 {[%clk 0:00:34]} 41. Be4 {[%clk 0:01:31]}  Ba4 {[%clk 0:00:30]} 42. Kd4 {[%clk 0:01:30]}  Kd6 {[%clk 0:00:29]} 43. f5 {[%clk 0:01:28]}  Be8 {[%clk 0:00:27]} 44. f6 {[%clk 0:01:24]}  Bd7 {[%clk 0:00:28]} 45. Bc2 {[%clk 0:01:17]}  Ke6 {[%clk 0:00:23]} 46. a4 {[%clk 0:01:16]}  Bc6 {[%clk 0:00:24]} 47. b5 {[%clk 0:01:15]}  Ba8 {[%clk 0:00:24]} 48. Bb3+ {[%clk 0:01:15]}  Kd6 {[%clk 0:00:25]} 49. a5 {[%clk 0:01:14]}  Bg2 {[%clk 0:00:23]} 50. a6 {[%clk 0:01:13]}  Bf3 {[%clk 0:00:19]} 51. b6 {[%clk 0:01:12]}  Bg4 {[%clk 0:00:18]} 52. f7 {[%clk 0:01:08]}  Ke7 {[%clk 0:00:18]} 53. Bd5 {[%clk 0:01:07]}  h5 {[%clk 0:00:16]} 54. a7 {[%clk 0:01:05]}  h4 {[%clk 0:00:17]} 1-0


[Site "https://www.chess.com"]

[Event "Titled Tuesday Blitz March 14 Late 2023"]
[White "Karas, Marek"]
[Black "Barash, Anton"]
[WhiteFideId "14928558"]
[BlackFideId "30935229"]
[WhiteElo "2233"]
[BlackElo "2338"]
[Result "1-0"]
[Round "06"]
[TimeControl "180+2"]
[Date "2023.03.14"]
[WhiteClock "0:00:35"]
[BlackClock "0:00:03"]

1. d4 {[%clk 0:02:59]}  d5 {[%clk 0:02:58]} 2. c4 {[%clk 0:02:59]}  e6 {[%clk 0:02:58]} 3. Nf3 {[%clk 0:02:59]}  Nf6 {[%clk 0:02:57]} 4. Nc3 {[%clk 0:02:59]}  Be7 {[%clk 0:02:56]} 5. g3 {[%clk 0:02:57]}  dxc4 {[%clk 0:02:51]} 6. Bg2 {[%clk 0:02:58]}  O-O {[%clk 0:02:49]} 7. Ne5 {[%clk 0:02:57]}  c5 {[%clk 0:02:43]} 8. dxc5 {[%clk 0:02:45]}  Qxd1+ {[%clk 0:02:40]} 9. Nxd1 {[%clk 0:02:46]}  Bxc5 {[%clk 0:02:39]} 10. Nxc4 {[%clk 0:02:42]}  Nc6 {[%clk 0:02:33]} 11. Be3 {[%clk 0:02:37]}  Bb4+ {[%clk 0:02:29]} 12. Nc3 {[%clk 0:02:32]}  Nd5 {[%clk 0:02:25]} 13. Bd2 {[%clk 0:02:31]}  Nd4 {[%clk 0:02:12]} 14. Rc1 {[%clk 0:02:16]}  Rd8 {[%clk 0:01:51]} 15. Nxd5 {[%clk 0:02:08]}  Bxd2+ {[%clk 0:01:51]} 16. Kxd2 {[%clk 0:01:59]}  exd5 {[%clk 0:01:49]} 17. Ne5 {[%clk 0:01:55]}  Be6 {[%clk 0:01:32]} 18. Rc7 {[%clk 0:01:48]}  Rab8 {[%clk 0:01:08]} 19. Rhc1 {[%clk 0:01:43]}  Nb5 {[%clk 0:01:07]} 20. R7c5 {[%clk 0:01:41]}  a6 {[%clk 0:01:03]} 21. Nd3 {[%clk 0:01:34]}  f6 {[%clk 0:00:57]} 22. Nf4 {[%clk 0:01:33]}  Kf7 {[%clk 0:00:50]} 23. a4 {[%clk 0:01:27]}  Nd4 {[%clk 0:00:45]} 24. Rc7+ {[%clk 0:01:27]}  Kf8 {[%clk 0:00:32]} 25. Ke1 {[%clk 0:01:13]}  Bf7 {[%clk 0:00:32]} 26. e3 {[%clk 0:01:03]}  Ne6 {[%clk 0:00:22]} 27. Nxe6+ {[%clk 0:00:55]}  Bxe6 {[%clk 0:00:23]} 28. b4 {[%clk 0:00:51]}  b6 {[%clk 0:00:15]} 29. Ra7 {[%clk 0:00:50]}  Ra8 {[%clk 0:00:12]} 30. Rcc7 {[%clk 0:00:49]}  Rxa7 {[%clk 0:00:12]} 31. Rxa7 {[%clk 0:00:50]}  d4 {[%clk 0:00:08]} 32. exd4 {[%clk 0:00:46]}  Rxd4 {[%clk 0:00:09]} 33. b5 {[%clk 0:00:37]}  Rxa4 {[%clk 0:00:06]} 34. Rxa6 {[%clk 0:00:35]}  Ra1+ {[%clk 0:00:03]} 35. Rxa1 {[%clk 0:00:35]} 1-0


[Site "https://www.chess.com"]

[Event "Titled Tuesday Blitz March 14 Late 2023"]
[White "Abrosimov, Vladimir"]
[Black "Sonnenschein, Philipp"]
[WhiteFideId "4166892"]
[BlackFideId "16250877"]
[WhiteElo "2336"]
[BlackElo "2224"]
[Result "0-1"]
[Round "06"]
[TimeControl "180+2"]
[Date "2023.03.14"]
[WhiteClock "0:00:11"]
[BlackClock "0:00:22"]

1. c4 {[%clk 0:02:58]}  e6 {[%clk 0:02:59]} 2. Nc3 {[%clk 0:02:59]}  c5 {[%clk 0:02:59]} 3. e4 {[%clk 0:02:57]}  Nc6 {[%clk 0:02:59]} 4. g3 {[%clk 0:02:52]}  Nf6 {[%clk 0:02:58]} 5. Bg2 {[%clk 0:02:53]}  Be7 {[%clk 0:02:51]} 6. d3 {[%clk 0:02:53]}  O-O {[%clk 0:02:51]} 7. Nge2 {[%clk 0:02:53]}  b6 {[%clk 0:02:42]} 8. O-O {[%clk 0:02:53]}  Bb7 {[%clk 0:02:42]} 9. f4 {[%clk 0:02:54]}  d6 {[%clk 0:02:40]} 10. h3 {[%clk 0:02:53]}  Nd4 {[%clk 0:02:36]} 11. Nxd4 {[%clk 0:02:52]}  cxd4 {[%clk 0:02:36]} 12. Ne2 {[%clk 0:02:53]}  e5 {[%clk 0:02:28]} 13. f5 {[%clk 0:02:53]}  Nd7 {[%clk 0:02:26]} 14. g4 {[%clk 0:02:51]}  Bg5 {[%clk 0:02:24]} 15. Ng3 {[%clk 0:02:48]}  a5 {[%clk 0:02:14]} 16. Nh5 {[%clk 0:02:43]}  h6 {[%clk 0:02:06]} 17. Qf3 {[%clk 0:02:36]}  Bxc1 {[%clk 0:02:04]} 18. Raxc1 {[%clk 0:02:36]}  Qg5 {[%clk 0:02:04]} 19. f6 {[%clk 0:02:29]}  g6 {[%clk 0:02:00]} 20. Ng3 {[%clk 0:02:12]}  Rfe8 {[%clk 0:02:00]} 21. Rc2 {[%clk 0:02:07]}  Re6 {[%clk 0:02:00]} 22. Kh1 {[%clk 0:01:55]}  Rxf6 {[%clk 0:01:58]} 23. Nf5 {[%clk 0:01:51]}  gxf5 {[%clk 0:01:53]} 24. gxf5 {[%clk 0:01:50]}  Kh7 {[%clk 0:01:50]} 25. Rg1 {[%clk 0:01:50]}  Rg8 {[%clk 0:01:48]} 26. Rcc1 {[%clk 0:01:24]}  h5 {[%clk 0:01:43]} 27. Qe2 {[%clk 0:01:18]}  Rh6 {[%clk 0:01:42]} 28. Bf3 {[%clk 0:01:11]}  Qh4 {[%clk 0:01:41]} 29. Qh2 {[%clk 0:01:02]}  Rxg1+ {[%clk 0:01:40]} 30. Rxg1 {[%clk 0:01:03]}  Qe7 {[%clk 0:01:25]} 31. Qg2 {[%clk 0:00:57]}  Qf8 {[%clk 0:01:25]} 32. Qg5 {[%clk 0:00:56]}  f6 {[%clk 0:01:21]} 33. Qh4 {[%clk 0:00:53]}  Qf7 {[%clk 0:01:20]} 34. a3 {[%clk 0:00:22]}  Kh8 {[%clk 0:01:19]} 35. b4 {[%clk 0:00:20]}  axb4 {[%clk 0:01:20]} 36. axb4 {[%clk 0:00:20]}  Nf8 {[%clk 0:01:07]} 37. Ra1 {[%clk 0:00:17]}  Nh7 {[%clk 0:01:06]} 38. Qg3 {[%clk 0:00:15]}  Ng5 {[%clk 0:01:06]} 39. h4 {[%clk 0:00:15]}  Nxf3 {[%clk 0:01:02]} 40. Qxf3 {[%clk 0:00:16]}  Rh7 {[%clk 0:01:03]} 41. Rg1 {[%clk 0:00:16]}  Rg7 {[%clk 0:01:03]} 42. Rxg7 {[%clk 0:00:16]}  Kxg7 {[%clk 0:01:03]} 43. Qg3+ {[%clk 0:00:16]}  Kf8 {[%clk 0:01:03]} 44. Qe1 {[%clk 0:00:14]}  Ke7 {[%clk 0:01:01]} 45. Qd1 {[%clk 0:00:14]}  Kd8 {[%clk 0:01:00]} 46. Qa4 {[%clk 0:00:13]}  Kc7 {[%clk 0:01:00]} 47. Qa7 {[%clk 0:00:12]}  Qg7 {[%clk 0:00:58]} 48. c5 {[%clk 0:00:12]}  dxc5 {[%clk 0:00:59]} 49. bxc5 {[%clk 0:00:12]}  bxc5 {[%clk 0:00:57]} 50. Qxc5+ {[%clk 0:00:12]}  Kd7 {[%clk 0:00:55]} 51. Qb5+ {[%clk 0:00:11]}  Bc6 {[%clk 0:00:55]} 52. Qb8 {[%clk 0:00:10]}  Qe7 {[%clk 0:00:41]} 53. Qa7+ {[%clk 0:00:09]}  Ke8 {[%clk 0:00:41]} 54. Qb8+ {[%clk 0:00:09]}  Kf7 {[%clk 0:00:41]} 55. Qh8 {[%clk 0:00:07]}  Qa3 {[%clk 0:00:37]} 56. Qxh5+ {[%clk 0:00:07]}  Ke7 {[%clk 0:00:37]} 57. Qh7+ {[%clk 0:00:07]}  Kd6 {[%clk 0:00:38]} 58. Qf7 {[%clk 0:00:02]}  Qc1+ {[%clk 0:00:37]} 59. Kh2 {[%clk 0:00:02]}  Qf4+ {[%clk 0:00:37]} 60. Kh1 {[%clk 0:00:03]}  Qxh4+ {[%clk 0:00:35]} 61. Kg1 {[%clk 0:00:03]}  Qe1+ {[%clk 0:00:34]} 62. Kh2 {[%clk 0:00:03]}  Qe2+ {[%clk 0:00:33]} 63. Kh1 {[%clk 0:00:04]}  Qe1+ {[%clk 0:00:31]} 64. Kh2 {[%clk 0:00:04]}  Qh4+ {[%clk 0:00:31]} 65. Kg1 {[%clk 0:00:04]}  Kc5 {[%clk 0:00:29]} 66. Qc4+ {[%clk 0:00:04]}  Kd6 {[%clk 0:00:28]} 67. Qe6+ {[%clk 0:00:04]}  Kc7 {[%clk 0:00:28]} 68. Qe7+ {[%clk 0:00:04]}  Bd7 {[%clk 0:00:27]} 69. Qc5+ {[%clk 0:00:04]}  Kb7 {[%clk 0:00:26]} 70. Qb4+ {[%clk 0:00:04]}  Ka6 {[%clk 0:00:25]} 71. Qa3+ {[%clk 0:00:03]}  Kb6 {[%clk 0:00:24]} 72. Qd6+ {[%clk 0:00:04]}  Bc6 {[%clk 0:00:25]} 73. Qb4+ {[%clk 0:00:04]}  Ka6 {[%clk 0:00:25]} 74. Qa3+ {[%clk 0:00:04]}  Kb5 {[%clk 0:00:24]} 75. Qb3+ {[%clk 0:00:04]}  Kc5 {[%clk 0:00:25]} 76. Qc4+ {[%clk 0:00:04]}  Kd6 {[%clk 0:00:25]} 77. Qe6+ {[%clk 0:00:05]}  Kc7 {[%clk 0:00:26]} 78. Qe7+ {[%clk 0:00:05]}  Kc8 {[%clk 0:00:26]} 79. Qf8+ {[%clk 0:00:04]}  Kb7 {[%clk 0:00:25]} 80. Qb4+ {[%clk 0:00:04]}  Ka8 {[%clk 0:00:23]} 81. Qa5+ {[%clk 0:00:04]}  Kb7 {[%clk 0:00:23]} 82. Qb4+ {[%clk 0:00:04]}  Ka6 {[%clk 0:00:24]} 83. Qa3+ {[%clk 0:00:04]}  Kb5 {[%clk 0:00:23]} 84. Qb3+ {[%clk 0:00:05]}  Ka5 {[%clk 0:00:23]} 85. Qa3+ {[%clk 0:00:05]}  Ba4 {[%clk 0:00:24]} 86. Qc5+ {[%clk 0:00:05]}  Ka6 {[%clk 0:00:24]} 87. Qd6+ {[%clk 0:00:04]}  Kb5 {[%clk 0:00:24]} 88. Qd5+ {[%clk 0:00:04]}  Kb4 {[%clk 0:00:25]} 89. Qc4+ {[%clk 0:00:05]}  Ka3 {[%clk 0:00:25]} 90. Qc1+ {[%clk 0:00:05]}  Ka2 {[%clk 0:00:24]} 91. Qd2+ {[%clk 0:00:05]}  Kb3 {[%clk 0:00:19]} 92. Qd1+ {[%clk 0:00:05]}  Kc3 {[%clk 0:00:19]} 93. Qxa4 {[%clk 0:00:04]}  Qe1+ {[%clk 0:00:17]} 94. Kh2 {[%clk 0:00:04]}  Qe2+ {[%clk 0:00:17]} 95. Kh1 {[%clk 0:00:04]}  Qxd3 {[%clk 0:00:17]} 96. Qa3+ {[%clk 0:00:04]}  Kd2 {[%clk 0:00:18]} 97. Qb2+ {[%clk 0:00:04]}  Ke3 {[%clk 0:00:18]} 98. Qg2 {[%clk 0:00:04]}  Qxe4 {[%clk 0:00:18]} 99. Qxe4+ {[%clk 0:00:04]}  Kxe4 {[%clk 0:00:19]} 100. Kg2 {[%clk 0:00:05]}  Kxf5 {[%clk 0:00:19]} 101. Kf3 {[%clk 0:00:06]}  e4+ {[%clk 0:00:19]} 102. Ke2 {[%clk 0:00:07]}  Kf4 {[%clk 0:00:20]} 103. Kf2 {[%clk 0:00:08]}  d3 {[%clk 0:00:20]} 104. Ke1 {[%clk 0:00:09]}  e3 {[%clk 0:00:20]} 105. Kf1 {[%clk 0:00:09]}  Kf3 {[%clk 0:00:21]} 106. Ke1 {[%clk 0:00:10]}  e2 {[%clk 0:00:21]} 107. Kd2 {[%clk 0:00:10]}  Kf2 {[%clk 0:00:22]} 108. Kxd3 {[%clk 0:00:11]}  e1=Q {[%clk 0:00:22]} 0-1


[Site "https://www.chess.com"]